Cogmind - Beta 16.1 @@@ ROGUE MODE // 2026.04.14 @ 19:14:15 Player: konomiyu Result: Destroyed by S-10 Pest with Light Assault Rifle Performance ------------- Evolutions (0) 0 Regions Visited (2) 400 Robots Destroyed (28) 140 Value Destroyed (471) 471 Prototype IDs (0) 0 Alien Tech Used (0) 0 Bonus (0) 0 TOTAL SCORE: 1011 Bonus ------- None Cogmind --------- Core Integrity 0/250 Matter 287/300 Energy 264/265 System Corruption 3% Temperature Cool (0) Movement Rolling (125) Ox3 Location -10/Subcaves Parts ------- > --- POWER (1) -------- Improved Ion Engine > --- PROPULSION (2) --- Light Treads Wheel > --- UTILITY (2) ------ Large Storage Unit Seismic Detector > --- WEAPON (2) ------- Subdweller Laser Heavy Assault Rifle > --- INVENTORY (15) --- Subdweller Power Source Subdweller Power Source Compact Wheel Subdweller Monowheel Small Storage Unit Subdweller Optics Subdweller Optics Signal Interpreter Hacking Suite Medium Laser Light Assault Rifle Mining Laser Ripper Scrap Shield Fragment (50) Peak State ------------ > --- POWER ------------ Improved Ion Engine > --- PROPULSION ------- Light Treads Light Treads > --- UTILITY ---------- Large Storage Unit Seismic Detector > --- WEAPON ----------- Subdweller Laser Heavy Assault Rifle > --- INVENTORY -------- Ion Engine Subdweller Power Source Wheel Compact Wheel Subdweller Monowheel Small Storage Unit Subdweller Optics Subdweller Optics Signal Interpreter Hacking Suite Medium Laser Mining Laser Ripper Scrap Shield Fragment [Rating: 12] Favorites ----------- Power Ion Engine Engine Ion Engine Propulsion Light Treads Treads Light Treads Wheel Wheel Utility Seismic Detector Device Seismic Detector Storage Large Storage Unit Weapon Assault Rifle Energy Gun Medium Laser Ballistic Gun Assault Rifle Special Weapon Mining Laser Build | -11 -10 -10 ------- Run | Yrd Mat Sub Slots Evolved . | . . . Power . | . . . Propulsion . | . . . Utility . | . . . Weapon . | . . . Parts Attached 19 | 7 8 4 Power 3 | 1 1 1 Engine 3 | 1 1 1 Core . | . . . Reactor . | . . . Propulsion 4 | 2 2 . Treads 3 | 2 1 . Leg . | . . . Wheel 1 | . 1 . Hover . | . . . Flight . | . . . Utility 4 | 2 1 1 Device 2 | 1 . 1 Storage 2 | 1 1 . Processor . | . . . Hackware . | . . . Protection . | . . . Artifact . | . . . Weapon 8 | 2 4 2 Energy Gun 4 | 1 2 1 Energy Cannon . | . . . Ballistic Gun 3 | 1 1 1 Ballistic Cannon . | . . . Launcher . | . . . Special Weapon 1 | . 1 . Impact Weapon . | . . . Slashing Weapon . | . . . Piercing Weapon . | . . . Special Melee Weapon . | . . . Unidentified Prototypes . | . . . Parts Lost 4 | . 2 2 Power 1 | . 1 . Propulsion 2 | . 1 1 Utility . | . . . Weapon 1 | . . 1 Highest Loss Streak 1 | . 1 1 To Critical Strikes . | . . . Average Backups 5 | 3 5 7 Power . | . . . Propulsion 2 | 1 2 2 Utility 1 | . . 2 Weapon 2 | 1 2 2 Tool/Special . | . . . Unused Backups 8 | . . 8 Power 2 | . . 2 Propulsion 2 | . . 2 Utility 3 | . . 3 Weapon 1 | . . 1 Tool/Special . | . . . Average Slot Usage (%) 99 | . 100 99 Engine 14 | . 14 14 Treads 26 | . 25 27 Wheel 1 | . 2 . Device 14 | . 14 14 Storage 14 | . 14 14 Energy Gun 10 | . 10 10 Ballistic Gun 16 | . 16 16 Peak Build Rating 12 | 7 7 12 Average Rating 7 | 5 6 8 On Entrance 4 | . 7 7 Avg Prop Armor Cover (%) 12 | . 12 13 Naked Turns . | . . . Heaviest Build 35 | 11 30 35 Greatest Support 40 | 40 40 40 Greatest Overweight (x) 3 | . 2 3 Average Overweight (x) . | . . . Largest Inventory Capacity 15 | 8 15 15 Average Capacity 13 | 7 12 15 Most Carried 15 | 5 7 15 Average Carried 6 | 3 5 7 Final Capacity 15 | 8 15 15 Final Carried 14 | 5 6 14 Class Distribution -------------------- 86% | Mutant 13% | Scavenger-Mutant Dominant Class ---------------- Mutant | -10/Materials Mutant | -10/Subcaves Resources | -11 -10 -10 ----------- Run | Yrd Mat Sub Matter Collected 772 | 109 544 119 Remotely . | . . . Salvage Created 722 | 86 548 88 Parts 63 | 15 42 6 Haulers Intercepted 1 | . 1 . Recyclers Shooed 1 | . 1 . Parts Field Recycled . | . . . Retrieved Matter . | . . . Parts Self-Destructed 2 | . . 2 Prevented . | . . . Parts Restored . | . . . Kills | -11 -10 -10 ------- Run | Yrd Mat Sub Combat Hostiles Destroyed 18 | . 16 2 Guns 18 | . 16 2 Classes Destroyed 9 | 1 6 2 Worker 2 | . 2 . Builder 2 | . 2 . Tunneler 4 | 4 . . Hauler 1 | . 1 . Operator 1 | . 1 . Swarmer 9 | . 9 . Grunt 7 | . 7 . Sentry 1 | . . 1 Subdweller 1 | . . 1 Best Kill Streak 3 | 2 3 1 Combat Bots Only 3 | . 3 1 Max Kills in Single Turn 1 | 1 1 1 Gunslinging . | . . . Exploded . | . . . Melee . | . . . Uniques/NPCs Destroyed . | . . . Combat | -11 -10 -10 -------- Run | Yrd Mat Sub Hostile Shots Fired 137 | . 106 31 Missed 33 | . 25 8 Hits 104 | . 81 23 Projectile 104 | . 81 23 Damage Taken 1041 | . 780 261 Core 252 | . 157 95 Absorbed by Shields . | . . . Core Remaining (%) 100 | 100 . . Volleys Fired 101 | 12 81 8 Largest 2 | 2 2 2 Hottest 100 | 60 100 70 Shots Fired 194 | 24 153 17 Gun 187 | 24 146 17 Cannon . | . . . Launcher . | . . . Special 7 | . 7 . Kinetic 122 | 12 100 10 Thermal 72 | 12 53 7 Explosive . | . . . Electromagnetic . | . . . Robot Hit Streak 9 | 6 9 8 Robot Miss Streak 5 | 1 5 1 Penetration Max . | . . . Secondary Targets 3 | . 3 . Max Gunslinging Chain 1 | . 1 . Shots Hit Robots 105 | 16 76 13 Core Hits 43 | 7 32 4 Critical Kills . | . . . Critical Parts Destroyed . | . . . Critical Strikes 2 | . 1 1 Burn 2 | . 1 1 Melee Attacks . | . . . Impact . | . . . Slashing . | . . . Piercing . | . . . Sneak Attacks . | . . . Combat Hostiles . | . . . Follow-up Attacks . | . . . Damage Inflicted 1287 | 153 990 144 Guns 1276 | 153 979 144 Cannons . | . . . Explosions . | . . . Melee . | . . . Ramming 11 | . 11 . Kinetic 744 | 75 587 82 Thermal 532 | 78 392 62 Explosive . | . . . Electromagnetic . | . . . Impact . | . . . Slashing . | . . . Piercing . | . . . Highest Corruption 3 | . 3 3 Average Corruption 2 | . 1 3 Corruption Purged . | . . . Corruption Blocked . | . . . Effects 25 | . 8 17 Message Errors 3 | . 1 2 Matter Fused 4 | . 1 3 Heat Flow Errors 3 | . 2 1 Energy Discharges 3 | . . 3 Data Loss (minor) 3 | . . 3 Data Loss (major) 3 | . 1 2 Misfires 1 | . . 1 Alerts 3 | . 1 2 Weapon Failures 2 | . 2 . Overload Shots . | . . . Overflow Damage . | . . . Projectiles . | . . . Explosions . | . . . Melee . | . . . Knockbacks . | . . . Impact . | . . . Kinetic . | . . . Secondary . | . . . Self-Inflicted Damage . | . . . Shots . | . . . Rammed 2 | . 2 . Targets Rammed 2 | . 2 . Kicked . | . . . Crushed . | . . . Highest Temperature 146 | 20 146 142 Average Temperature 27 | 14 28 82 Received Heat Transfer 330 | . 267 63 Siege Activations . | . . . Martial Activations . | . . . Shielding Activations . | . . . Robots Disrupted . | . . . Combat Hostiles . | . . . Robots Corrupted . | . . . Combat Hostiles . | . . . Parts Fried . | . . . Impact Corruptions . | . . . Robots Melted . | . . . Combat Hostiles . | . . . Parts Melted 1 | . 1 . Heat Transferred 1655 | 175 1221 259 Parts Sabotaged . | . . . Parts Stolen . | . . . Parts Stripped . | . . . Power Chain Reactions . | . . . Alert | -11 -10 -10 ------- Run | Yrd Mat Sub Maximum Alert Level . | . . . Low Security (%) 100 | 100 100 . Level 1 . | . . . Level 2 . | . . . Level 3 . | . . . Level 4 . | . . . Level 5 . | . . . High Security . | . . . Max Security . | . . . Peak Influence 181 | 10 181 . Initial . | . . . Average 106 | 1 119 . Influence Increases 736 | 20 666 50 Destroy 0b10 Robot/C 340 | . 320 20 Destroy 0b10 Robot/NC 50 | 20 30 . Destroy Leader 82 | . 82 . Successful Hack 17 | . 17 . Select Force Hacks 60 | . 60 . Destroy Structure 7 | . 7 . Lose Combat Pursuer 180 | . 150 30 Influence Decreases 706 | 20 502 184 Entered New Map 80 | . . 80 Time Decay 606 | 20 482 104 Lost Part 20 | . 20 . Squads Dispatched 6 | . 6 . Investigation 4 | . 4 . Extermination . | . . . Reinforcement 2 | . 2 . Assault . | . . . Garrison . | . . . Intercept . | . . . Searches Triggered . | . . . Construction Impeded . | . . . Haulers Reinforced . | . . . Active Scanning Responses . | . . . Cargo Convoy Interrupts . | . . . Stealth | -11 -10 -10 --------- Run | Yrd Mat Sub Distress Signals 3 | . 3 . Communications Jammed . | . . . Distress Signals . | . . . Times Spotted 43 | . 36 7 Peak Tracking Total 6 | . 6 6 Tactical Retreats 5 | . 4 1 Traps | -11 -10 -10 ------- Run | Yrd Mat Sub Traps Triggered 3 | . 3 . Indirectly . | . . . Trap Hack Attempts . | . . . Triggered . | . . . Disarmed . | . . . Reprogrammed . | . . . Reused . | . . . Traps Extracted . | . . . Installed . | . . . Triggered . | . . . Machines | -11 -10 -10 ---------- Run | Yrd Mat Sub Machines Disabled . | . . . Max in Single Turn . | . . . Machines Repaired . | . . . Machines Dismantled . | . . . Machines Sabotaged . | . . . Overloaded Fab Kills . | . . . Hacking | -11 -10 -10 --------- Run | Yrd Mat Sub Machines Accessed 6 | . 6 . Terminals 4 | . 4 . Fabricators . | . . . Repair Stations . | . . . Recycling Units 2 | . 2 . Scanalyzers . | . . . Garrison Access . | . . . Total Hacks 12 | . 12 . Successful 7 | . 7 . Failed 5 | . 5 . Catastrophic 1 | . 1 . Database Lockouts . | . . . Manual 9 | . 9 . Terminals 9 | . 9 . Fabricators . | . . . Repair Stations . | . . . Recycling Units 3 | . 3 . Scanalyzers . | . . . Garrison Access . | . . . Terminal Hacks 4 | . 4 . Robot Analysis 2 | . 2 . Transport Status 1 | . 1 . Hauler Manifests 1 | . 1 . Fabricator Hacks . | . . . Repair Station Hacks . | . . . Recycling Unit Hacks . | . . . Scanalyzer . | . . . Garrison Access Hacks . | . . . Unauthorized Hacks 3 | . 3 . Terminals 1 | . 1 . Operators 1 | . 1 . Fabricators . | . . . Repair Stations . | . . . Recycling Units 2 | . 2 . Tunnel 2 | . 2 . Scanalyzers . | . . . Garrison Access . | . . . Data Cores Recovered . | . . . Used . | . . . Hacking Detections 3 | . 3 . Full Trace Events 1 | . 1 . Feedback Events . | . . . Feedback Blocked . | . . . Robot Schematics Acquired . | . . . Robots Built . | . . . Authchips . | . . . Time . | . . . Total Robot Build Rating . | . . . Part Schematics Acquired . | . . . Parts Built . | . . . Authchips . | . . . Time . | . . . Total Part Build Rating . | . . . Part Studies Acquired . | . . . Parts Repaired . | . . . Time . | . . . Parts Recycled . | . . . Recycled Matter . | . . . Retrieved Matter . | . . . Retrieved Components . | . . . Parts Scanalyzed . | . . . Part Schematics Acquired . | . . . Parts Damaged . | . . . Bothacking | -11 -10 -10 ------------ Run | Yrd Mat Sub Used RIF Installer . | . . . Robots Hacked . | . . . Non-combat . | . . . Combat . | . . . Robot Hacks Applied . | . . . Relay Couplers Released . | . . . Fabnet Peak Effective % . | . . . Robots Rewired . | . . . Allies Hacked . | . . . Hacks Repelled . | . . . Allies | -11 -10 -10 -------- Run | Yrd Mat Sub Total Allies . | . . . Largest Group . | . . . Highest-Rated Group . | . . . Highest-Rated Ally . | . . . Total Orders . | . . . Ally Attacks . | . . . Total Damage . | . . . Kills . | . . . Allies Corrupted . | . . . Allies Melted . | . . . Intel | -11 -10 -10 ------- Run | Yrd Mat Sub Active Infowar (turns) 2046 | 90 1282 674 Structural 2 | . . 2 Seismic 2044 | 90 1282 672 Robot Analysis Total 2 | . 2 . Derelict Logs Recovered 1 | . . 1 Drone Launches . | . . . Drone Recoveries . | . . . Exploration | -11 -10 -10 ------------- Run | Yrd Mat Sub Turns Passed 2117 | 161 1282 674 Spaces Moved 1058 | 71 632 355 Core 1 | 1 . . Treads 914 | 70 496 348 Legs . | . . . Wheels 143 | . 136 7 Hover . | . . . Flight . | . . . Fastest Speed 50 | 50 95 125 Average Speed 152 | 158 148 159 Slowest Speed 240 | 160 160 240 Overloaded Moves . | . . . Propulsion Burnouts . | . . . Robots Hopped . | . . . Potential Cave-ins . | . . . Cave-ins Triggered . | . . . Exploration Rate (%) 30 | 6 66 18 Regions Visited 2 Branch Regions 1 Pre-discovered Areas 4 | . 2 2 Known Exits Taken . | . . . Unknown Exits Taken 2 | 1 1 . Scrap Searched 4 | . . 4 Spaces Dug 7 | . 7 . Terrain Destroyed 7 | . 7 . Melee . | . . . Projectile 7 | . 7 . AOE . | . . . Terrain Rammed . | . . . Walls Destroyed . | . . . Machines Disabled . | . . . Actions | -11 -10 -10 --------- Run | Yrd Mat Sub Total 1348 | 95 807 446 Wait 139 | . 74 65 Move 1056 | 70 631 355 Hop . | . . . Pick Up 17 | 6 2 9 Fast Attach 6 | 6 . . Attach 5 | 1 2 2 Detach . | . . . Swap 20 | . 14 6 Drop 2 | . 1 1 Fire 101 | 12 81 8 Melee . | . . . Ram . | . . . Kick . | . . . Crush 2 | . 2 . Escape Stasis . | . . . Rewire . | . . . Trap . | . . . Miscellaneous . | . . . Route ------- -11/Scrapyard -10/Materials (discovered 3 exits: [*Mat] / [*Min] / [*Sub]) -10/Subcaves (discovered 1 exit: [*Mat]) History --------- Turn | Location | Event 35 | -11/Scrapyard | Discovered new exit (range 15) 162 | -11/Scrapyard | Entered Materials 313 | -10/Materials | Build established: Mutant 1045 | -10/Materials | Discovered new exit (range 15) 1258 | -10/Materials | Discovered new exit (range 13) 1342 | -10/Materials | Core integrity fell below 50% 1419 | -10/Materials | Discovered new exit (range 14) 1444 | -10/Materials | Entered Subcaves 1460 | -10/Subcaves | Discovered new exit (range 12) 1818 | -10/Subcaves | Core integrity fell below 20% 1909 | -10/Subcaves | Learned location of Zion (-7) 1909 | -10/Subcaves | Met a Zionite searching for "candidates" 1953 | -10/Subcaves | Disturbed a concealed Subdweller 2118 | -10/Subcaves | Destroyed by S-10 Pest with Light Assault Rifle Last Messages --------------- 01981_ Searching scrap... 01981_ Found Sub. Power Source. 01981_ Found 46 Matter. 01982_ Acquired 20 matter. 01984_ Acquired Sub. Power Source. 01986_ Acquired Scrap Shield Fragment. 01994_ Acquired Signal Interpreter. 01998_ Acquired Ripper. 02001_ Subatomizers dissect the Sub. Power Source. 02001_ Acquired Sub. Laser. 02002_ Acquired Lgt. Assault Rifle. 02003_ Acquired 10 matter. 02013_ Dropped Ion Engine. 02013_ Acquired Sub. Power Source. 02017_ System corrupted: Matter fused (-8). 02094_ System corrupted: Substantial component data lost. 02104_ Lgt. Treads destroyed. 02112_ AUOCKWPSBLT %PSDXUZ13%OD Map ----- +----------------------------------------------------+ | ?????????????????????###### ###????????#####?????? | | ????????????????????## #????????# ####??? | | ????????????????????# #?????#### #??? | | ???????????????????## ## ##????## ## ##### | | ??????????????????## #####???### ##?### | | ???????????????#### ##?????# ###### | | ??????????????## ## #??#### ## | | ?????????###### ## #?# | | ?????????## %### ### #### | | ?????????##% #&#" #####?# ###### ## | | ?????????###%*! % ####????# ##??# # | | ?????????## "##" ### #????# ####???# | | ?????????## %## ### ##???# ## ##??# | | ?????????######## ## ##?## #??# | | ?????????#####?## ### ## ### # | | ???????????????# ###### ### | | ???????????????## #????### # ## | | ????????????????# #?????## ## | | ???????????????## ## #???### # | | ??????????????## #### ##???# # # | | ??????????????# ##??####### ## ## | | ??????????????# ## #??????# #?# ##? | | ?????????????# ### ###????## ### # # #? | | ?????????????####?# # ##??## ### #####? | | ?????????????????### #### #####????? | | ????????????????## @ ## ## #????????? | | ???????????????## # ## ##????????? | | ???????????????# s ## ##?????????? | | ??????????????# s #? ##??????????? | | ??????????????# zz # # # ##???????????? | | ??????????????# ######### #????????????? | | ??????????????## ###????????? #????????????? | | ???????????????## #####??????????? ????????????? | | ????????????????##???????????????? ????????????? | | ?????????????????????????????????? ???????????? | | ?????????????????????????????????? ???????????? | | ???????????????????????????????????" ????????????? | | ?????????????????????????????????????????????????? | | ?????????????????????????????????????????????????? | | ?????????????????????????????????????????????????? | | ?????????????????????????????????????????????????? | | ?????????????????????????????????????????????????? | | ?????????????????????????????????????????????????? | | ?????????????????????????????????????????????????? | | ?????????????????????????????????????????????????? | | ?????????????????????????????????????????????????? | | ?????????????????????????????????????????????????? | | ?????????????????????????????????????????????????? | | ?????????????????????????????????????????????????? | | ?????????????????????????????????????????????????? | +----------------------------------------------------+ Best States ------------- Heat Dissipation 25 Energy Generation 12 Energy Capacity 265 Matter Stores 300 Matter Capacity 300 Sight Range 16 Terrain Scan Density 10 Evasion (%) 41 Recoil Reduction 2 Item Schematics ----------------- None Robot Schematics ------------------ None Fabricated ------------ Nothing Repaired ---------- Nothing Studied --------- None Alien Tech Used ----------------- None Achievements -------------- None Challenges ------------ None Game ------ Seed IntegrityPortableRipper Manual? 0 Play Time 00:18:22 Cumulative 48.4 hours Start 2026.04.14 @ 18:55:50 End 2026.04.14 @ 19:14:15 Sessions 1 Manual Loads 0 Difficulty Rogue Special Mode None Game No. 49 Rogue 49 Adventurer 0 Explorer 0 Win Type - Total 0 Types 0/0/0/0/0/0/0/0/0/0 Lore% 40 Gallery% 31 Achievement% 25 Wizard Run 0 Options --------- Layout 1 ASCII 0 Keyboard 1 Movement Vi Keybinds 0 Fullscreen 2 Font 24/Smallcaps Map View 50x35 Zoom Use 0% Tactical HUD 1 Map Filters NONE Filters NONE Steam 1 RUN: 0e8fa522-268c-4f2b-9d0e-ff48f5fc86de